Cogmind - Beta 13 @@@ ROGUE MODE // 2024.03.31 @ 21:18:13 Player: Alarik Result: Destroyed by G-47 Trooper with Particle Gun Performance ------------- Evolutions (2) 1000 Regions Visited (4) 800 Robots Destroyed (24) 120 Value Destroyed (705) 705 Prototype IDs (4) 80 Alien Tech Used (0) 0 Bonus (0) 0 TOTAL SCORE: 2705 Bonus ------- None Cogmind --------- Core Integrity 0/550 Matter 113/300 Energy 100/100 System Corruption 1% Temperature Cool (9) Movement Core (200) Ox3 Location -8/Storage Parts ------- > --- POWER (1) -------- (None) > --- PROPULSION (4) --- (None) > --- UTILITY (3) ------ Medium Storage Unit Advanced Visual Processing Unit > --- WEAPON (3) ------- (None) > --- INVENTORY (10) --- Light Deuterium Engine Compact Battery (200) Trap Scanner Signal Interpreter Improved Targeting Computer Peak State ------------ > --- POWER ------------ Light Deuterium Engine > --- PROPULSION ------- Aluminum Leg Aluminum Leg Aluminum Leg Carbon-fiber Leg > --- UTILITY ---------- Medium Storage Unit Advanced Visual Processing Unit Sensor Array > --- WEAPON ----------- Pulse Rifle Assault Rifle Assault Rifle > --- INVENTORY -------- Light Nuclear Core Compact Battery Trap Scanner Signal Interpreter Improved Targeting Computer [Rating: 20] Favorites ----------- Power Light Ion Engine Engine Light Ion Engine Power Core Light Nuclear Core Propulsion Aluminum Leg Leg Aluminum Leg Utility Sensor Array Device Sensor Array Storage Medium Storage Unit Processor Visual Processing Unit Weapon Assault Rifle Energy Gun Pulse Rifle Ballistic Gun Assault Rifle Launcher Grenade Launcher Special Weapon Welding Torch Build | -11 -10 -9 -8 -8 ------- Run | Yrd Mat Mat Mat Sto Slots Evolved 4 | . . 2 2 . Power . | . . . . . Propulsion 2 | . . 2 . . Utility 1 | . . . 1 . Weapon 1 | . . . 1 . Parts Attached 25 | 5 2 8 5 5 Power 4 | 1 . 2 . 1 Engine 3 | 1 . 2 . . Core 1 | . . . . 1 Reactor . | . . . . . Propulsion 6 | 2 . 2 . 2 Treads . | . . . . . Leg 6 | 2 . 2 . 2 Wheel . | . . . . . Hover . | . . . . . Flight . | . . . . . Utility 4 | . 2 . 2 . Device 1 | . 1 . . . Storage 1 | . . . 1 . Processor 2 | . 1 . 1 . Hackware . | . . . . . Protection . | . . . . . Artifact . | . . . . . Weapon 11 | 2 . 4 3 2 Energy Gun 1 | . . . 1 . Energy Cannon . | . . . . . Ballistic Gun 5 | 2 . 2 . 1 Ballistic Cannon . | . . . . . Launcher 4 | . . 2 2 . Special Weapon 1 | . . . . 1 Impact Weapon . | . . . . . Slashing Weapon . | . . . . . Piercing Weapon . | . . . . . Special Melee Weapon . | . . . . . Unidentified Prototypes . | . . . . . Parts Lost 13 | . . . . 13 Power 1 | . . . . 1 Propulsion 6 | . . . . 6 Utility 1 | . . . . 1 Weapon 5 | . . . . 5 Highest Loss Streak 10 | . . . . 10 To Critical Strikes . | . . . . . Average Slot Usage (%) 92 | . 93 100 99 79 Engine 9 | . 14 11 9 2 Core 1 | . . . . 3 Leg 32 | . 28 44 36 25 Device 9 | . 10 11 9 7 Storage 4 | . . . 9 9 Processor 9 | . 10 11 9 9 Energy Gun 2 | . . . 5 6 Ballistic Gun 19 | . 28 20 16 12 Launcher 1 | . . 1 4 1 Naked Turns . | . . . . . Heaviest Build 24 | 7 8 16 24 24 Greatest Support 45 | 20 20 40 40 45 Greatest Overweight (x) 3 | . . . . 3 Average Overweight (x) . | . . . . . Largest Inventory Capacity 10 | 5 5 5 10 10 Average Capacity 7 | 5 5 5 10 10 Most Carried 6 | 2 5 5 5 6 Average Carried 4 | . 4 4 3 4 Final Capacity 10 | 5 5 5 10 10 Final Carried 5 | 2 5 5 5 5 Class Distribution -------------------- 40% | Mutant 23% | Scavenger-Skirmisher 20% | Scavenger-Mutant 15% | Skirmisher Dominant Class ---------------- Mutant | -10/Materials Scavenger-Mutant | -9/Materials Scavenger-Skirmisher | -8/Materials Scavenger-Skirmisher | -8/Storage Resources | -11 -10 -9 -8 -8 ----------- Run | Yrd Mat Mat Mat Sto Matter Collected 692 | 268 22 79 151 172 Remotely . | . . . . . Salvage Created 768 | 40 76 160 284 208 Parts 49 | 2 9 9 20 9 Haulers Intercepted 1 | . . . 1 . Recyclers Shooed . | . . . . . Parts Field Recycled . | . . . . . Retrieved Matter . | . . . . . Parts Self-Destructed . | . . . . . Prevented . | . . . . . Kills | -11 -10 -9 -8 -8 ------- Run | Yrd Mat Mat Mat Sto Combat Hostiles Destroyed 18 | 1 1 8 4 4 Guns 11 | 1 1 1 4 4 AOE 7 | . . 7 . . Classes Destroyed 8 | 1 1 2 3 1 Worker 2 | . . . 1 1 Hauler 1 | . . . 1 . Watcher 3 | . 2 . 1 . Swarmer 4 | . . 4 . . Grunt 9 | 1 1 3 1 3 Brawler 1 | . . 1 . . Sentry 3 | . . . 3 . Hunter 1 | . . . . 1 Best Kill Streak 5 | 1 2 5 4 2 Combat Bots Only 5 | 1 1 5 2 2 Max Kills in Single Turn 3 | 1 1 3 2 2 Gunslinging 1 | . . . . 1 Exploded 3 | . . 3 . . Melee . | . . . . . Uniques/NPCs Destroyed . | . . . . . Combat | -11 -10 -9 -8 -8 -------- Run | Yrd Mat Mat Mat Sto Hostile Shots Fired 174 | 3 5 13 21 132 Missed 51 | 1 2 7 3 38 Damage Taken 1842 | 21 32 57 279 1453 Core 577 | 11 . 9 29 528 Absorbed by Shields . | . . . . . Core Remaining (%) 95 | 95 95 97 . . Volleys Fired 78 | 3 9 6 26 34 Largest 3 | 2 2 2 3 3 Hottest 103 | 40 40 50 103 103 Shots Fired 173 | 6 18 12 62 75 Gun 162 | 6 18 6 58 74 Cannon . | . . . . . Launcher 10 | . . 6 4 . Special 1 | . . . . 1 Kinetic 133 | 6 18 6 46 57 Thermal 30 | . . . 12 18 Explosive 10 | . . 6 4 . Electromagnetic . | . . . . . Robot Hit Streak 7 | 4 6 4 7 7 Robot Miss Streak 8 | 1 1 1 5 8 Penetration Max . | . . . . . Secondary Targets 2 | . . . . 2 Max Gunslinging Chain 1 | . . . . 1 Shots Hit Robots 83 | 4 10 6 26 37 Core Hits 50 | 2 4 12 18 14 Critical Kills . | . . . . . Critical Parts Destroyed 1 | . . . . 1 Critical Strikes 2 | . . . . 2 Burn 1 | . . . . 1 Destroy 1 | . . . . 1 Melee Attacks . | . . . . . Impact . | . . . . . Slashing . | . . . . . Piercing . | . . . . . Sneak Attacks . | . . . . . Combat Hostiles . | . . . . . Follow-up Attacks . | . . . . . Damage Inflicted 1667 | 50 158 368 568 523 Guns 1225 | 50 154 44 454 523 Cannons . | . . . . . Explosions 430 | . . 324 106 . Melee . | . . . . . Ramming 12 | . 4 . 8 . Kinetic 988 | 50 154 44 355 385 Thermal 237 | . . . 99 138 Explosive 430 | . . 324 106 . Electromagnetic . | . . . . . Impact . | . . . . . Slashing . | . . . . . Piercing . | . . . . . Highest Corruption 1 | . 1 . . 1 Average Corruption 1 | . 1 . . 1 Corruption Purged . | . . . . . Corruption Blocked . | . . . . . Effects 3 | . 1 . . 2 Message Errors 2 | . 1 . . 1 Data Loss (major) 1 | . . . . 1 Overload Shots . | . . . . . Overflow Damage . | . . . . . Projectiles . | . . . . . Explosions . | . . . . . Melee . | . . . . . Knockbacks . | . . . . . Impact . | . . . . . Kinetic . | . . . . . Secondary . | . . . . . Self-Inflicted Damage 9 | . . . 9 . Shots 1 | . . . 1 . Rammed . | . . . . . Targets Rammed 2 | . 1 . 1 . Kicked 2 | . 1 . 1 . Crushed . | . . . . . Highest Temperature 399 | . . 3 227 399 Average Temperature 162 | . . 3 90 206 Received Heat Transfer 906 | 12 18 12 72 792 Effects 1 | . . . . 1 Damage (minor) 1 | . . . . 1 Siege Activations . | . . . . . Robots Corrupted . | . . . . . Combat Hostiles . | . . . . . Parts Fried . | . . . . . Impact Corruptions . | . . . . . Robots Melted . | . . . . . Combat Hostiles . | . . . . . Parts Melted . | . . . . . Heat Transferred 592 | . . . 222 370 Parts Sabotaged . | . . . . . Parts Stolen . | . . . . . Parts Stripped . | . . . . . Power Chain Reactions . | . . . . . Alert | -11 -10 -9 -8 -8 ------- Run | Yrd Mat Mat Mat Sto Peak Influence 327 | 20 84 292 327 207 Initial 137 | . 13 35 122 137 Average 147 | 2 64 212 246 157 Maximum Alert Level 1 | . . 1 1 1 Low Security (%) 71 | 100 100 43 17 95 Level 1 28 | . . 56 82 4 Level 2 . | . . . . . Level 3 . | . . . . . Level 4 . | . . . . . Level 5 . | . . . . . High Security . | . . . . . Max Security . | . . . . . Squads Dispatched 5 | . . 1 2 2 Investigation 3 | . . 1 . 2 Extermination . | . . . . . Reinforcement 2 | . . . 2 . Assault . | . . . . . Garrison . | . . . . . Intercept . | . . . . . Searches Triggered . | . . . . . Construction Impeded . | . . . . . Haulers Reinforced . | . . . . . Active Scanning Responses . | . . . . . Cargo Convoy Interrupts . | . . . . . Stealth | -11 -10 -9 -8 -8 --------- Run | Yrd Mat Mat Mat Sto Distress Signals 2 | . 1 . . 1 Communications Jammed . | . . . . . Distress Signals . | . . . . . Times Spotted 29 | 1 3 8 11 6 Peak Tracking Total 5 | 1 2 4 4 5 Tactical Retreats 2 | . . . . 2 Traps | -11 -10 -9 -8 -8 ------- Run | Yrd Mat Mat Mat Sto Traps Triggered 1 | . . . . 1 Indirectly . | . . . . . Trap Hack Attempts . | . . . . . Triggered . | . . . . . Disarmed . | . . . . . Reprogrammed . | . . . . . Reused . | . . . . . Traps Extracted . | . . . . . Installed . | . . . . . Triggered . | . . . . . Machines | -11 -10 -9 -8 -8 ---------- Run | Yrd Mat Mat Mat Sto Machines Disabled 2 | . . 2 . . Max in Single Turn 1 | . . 1 . . Machines Repaired . | . . . . . Machines Dismantled . | . . . . . Machines Sabotaged . | . . . . . Overloaded Fab Kills . | . . . . . Hacking | -11 -10 -9 -8 -8 --------- Run | Yrd Mat Mat Mat Sto Machines Accessed 10 | . 5 2 . 3 Terminals 9 | . 5 1 . 3 Fabricators . | . . . . . Repair Stations . | . . . . . Recycling Units . | . . . . . Scanalyzers 1 | . . 1 . . Garrison Access . | . . . . . Total Hacks 30 | . 14 9 . 7 Successful 18 | . 8 6 . 4 Failed 12 | . 6 3 . 3 Catastrophic 2 | . . . . 2 Database Lockouts . | . . . . . Manual . | . . . . . Terminals 26 | . 14 5 . 7 Fabricators . | . . . . . Repair Stations . | . . . . . Recycling Units . | . . . . . Scanalyzers 4 | . . 4 . . Garrison Access . | . . . . . Terminal Hacks 15 | . 8 3 . 4 Record 4 | . 4 . . . Robot Analysis 1 | . . 1 . . Prototype ID Bank 2 | . 1 . . 1 Open Door 1 | . . . . 1 Emergency Access Points 1 | . . 1 . . Alert Level 2 | . 1 1 . . Dispatch Records 1 | . 1 . . . Maintenance Status 1 | . 1 . . . Investigation Status 1 | . . . . 1 Hauler Manifests 1 | . . . . 1 Fabricator Hacks . | . . . . . Repair Station Hacks . | . . . . . Recycling Unit Hacks . | . . . . . Scanalyzer 3 | . . 3 . . Insert Component 2 | . . 2 . . Analyze 1 | . . 1 . . Garrison Access Hacks . | . . . . . Unauthorized Hacks . | . . . . . Terminals . | . . . . . Fabricators . | . . . . . Repair Stations . | . . . . . Recycling Units . | . . . . . Scanalyzers . | . . . . . Garrison Access . | . . . . . Data Cores Recovered . | . . . . . Used . | . . . . . Hacking Detections 7 | . 3 2 . 2 Full Trace Events 5 | . 2 1 . 2 Feedback Events 2 | . 1 . . 1 Corruption 2 | . 1 . . 1 Feedback Blocked . | . . . . . Robot Schematics Acquired . | . . . . . Robots Built . | . . . . . Authchips . | . . . . . Time . | . . . . . Total Robot Build Rating . | . . . . . Part Schematics Acquired 1 | . . 1 . . Parts Built . | . . . . . Authchips . | . . . . . Time . | . . . . . Total Part Build Rating . | . . . . . Parts Repaired . | . . . . . Time . | . . . . . Parts Recycled . | . . . . . Recycled Matter . | . . . . . Retrieved Matter . | . . . . . Retrieved Components . | . . . . . Parts Scanalyzed 1 | . . 1 . . Part Schematics Acquired 1 | . . 1 . . Parts Damaged . | . . . . . Bothacking | -11 -10 -9 -8 -8 ------------ Run | Yrd Mat Mat Mat Sto Used RIF Installer . | . . . . . Robots Hacked . | . . . . . Non-combat . | . . . . . Combat . | . . . . . Robot Hacks Applied . | . . . . . Relay Couplers Released . | . . . . . Fabnet Peak Effective % . | . . . . . Robots Rewired . | . . . . . Allies Hacked . | . . . . . Hacks Repelled . | . . . . . Allies | -11 -10 -9 -8 -8 -------- Run | Yrd Mat Mat Mat Sto Total Allies . | . . . . . Largest Group . | . . . . . Highest-Rated Group . | . . . . . Highest-Rated Ally . | . . . . . Total Orders . | . . . . . Ally Attacks . | . . . . . Total Damage . | . . . . . Kills . | . . . . . Allies Corrupted . | . . . . . Allies Melted . | . . . . . Intel | -11 -10 -9 -8 -8 ------- Run | Yrd Mat Mat Mat Sto Robot Analysis Total 1 | . . 1 . . Derelict Logs Recovered . | . . . . . Drone Launches . | . . . . . Drone Recoveries . | . . . . . Exploration | -11 -10 -9 -8 -8 ------------- Run | Yrd Mat Mat Mat Sto Turns Passed 1117 | 101 289 230 211 286 Spaces Moved 632 | 71 196 162 99 104 Core 19 | 16 . . . 3 Treads . | . . . . . Legs 613 | 55 196 162 99 101 Wheels . | . . . . . Hover . | . . . . . Flight . | . . . . . Fastest Speed 50 | 50 120 120 120 120 Average Speed 118 | 104 120 120 120 122 Slowest Speed 200 | 120 120 120 120 200 Overloaded Moves . | . . . . . Propulsion Burnouts . | . . . . . Robots Hopped . | . . . . . Cave-ins Triggered . | . . . . . Exploration Rate (%) 19 | 6 41 18 17 15 Regions Visited 4 Branch Regions 1 Pre-discovered Areas . | . . . . . Known Exits Taken . | . . . . . Unknown Exits Taken 4 | 1 1 1 1 . Scrap Searched . | . . . . . Spaces Dug . | . . . . . Terrain Destroyed 43 | . . 14 29 . Melee . | . . . . . Projectile . | . . . . . AOE 43 | . . 14 29 . Terrain Rammed . | . . . . . Walls Destroyed . | . . . . . Machines Disabled . | . . . . . Actions | -11 -10 -9 -8 -8 --------- Run | Yrd Mat Mat Mat Sto Total 842 | 90 232 184 137 199 Wait 86 | 9 18 2 4 53 Move 628 | 70 195 161 98 104 Hop . | . . . . . Pick Up 19 | 3 6 4 3 3 Fast Attach 6 | 4 . 1 . 1 Attach 10 | 1 2 2 2 3 Detach . | . . . . . Swap 9 | . . 5 3 1 Drop 4 | . 1 3 . . Fire 78 | 3 9 6 26 34 Melee . | . . . . . Ram . | . . . . . Kick 2 | . 1 . 1 . Crush . | . . . . . Escape Stasis . | . . . . . Rewire . | . . . . . Trap . | . . . . . Miscellaneous . | . . . . . Route ------- -11/Scrapyard -10/Materials -9/Materials -8/Materials (discovered 2 exits: *Sto x2) -8/Storage History --------- Turn | Location | Event 2 | -11/Scrapyard | Met Revision 17 74 | -11/Scrapyard | Discovered new exit (range 8) 102 | -11/Scrapyard | Entered Materials 307 | -10/Materials | Build established: Mutant 316 | -10/Materials | Discovered new exit (range 18) 391 | -10/Materials | Entered another Materials area 391 | -9/Materials | Evolved 2 slots: Propulsion x2 610 | -9/Materials | Discovered new exit (range 10) 621 | -9/Materials | Entered another Materials area 621 | -8/Materials | Evolved 2 slots: Utility x1, Weapon x1 632 | -8/Materials | Discovered new exit (range 17) 799 | -8/Materials | Discovered new exit (range 15) 832 | -8/Materials | Entered Storage 912 | -8/Storage | Lost 3 parts (2n1w) 1089 | -8/Storage | Core integrity fell below 50% 1103 | -8/Storage | Lost 10 parts (1p4n1u4w) 1107 | -8/Storage | Core integrity fell below 20% 1118 | -8/Storage | Destroyed by G-47 Trooper with Particle Gun Last Messages --------------- (-36). 01045_ System corrupted: Substantial component data lost. 01046_ Assault Rifle destroyed. 01048_ Pulse Rifle destroyed. 01051_ Critical hit (Burn: +37). 01053_ Assault Rifle destroyed. 01054_ Aluminum Leg destroyed. 01058_ Carbon-fiber Leg destroyed. 01061_ R-06 Scavenger collects Imp. Heat Sink. 01061_ Acquired 9 matter. 01065_ R-06 Scavenger collects Aluminum Leg. 01065_ Acquired Welding Torch. 01068_ Welding Torch destroyed. 01072_ Sensor Array destroyed. 01073_ R-06 Scavenger collects Wheel. 01079_ R-06 Scavenger collects Lgt. Nuclear Core. 01102_ Critical hit (Burn: +37). [Achievement: First Step to Greatness] Map ----- +----------------------------------------------------+ | | | | | | | | | | | | | | | | | | | | | | | | | | | | | | | | | ?????????????????????????????????????????????????? | | ???###????????????????????????????????????????#### | | ???" #???###########??????????????????????????#!!! | | ???" ##### #??????????????????????????#! ! | | ???" + #??????????????????????????# | | ???#T# ####???????????????????????# | | ???### ##T##################+########+ | | ?????# % | | ?????# u* g% | | ?????# ! @ g % u k | | ?????###+#+############################+#######+## | | ???????# #??????????????????????# | | ???????# #??????????????????????# | | ???????# #??????????????????????# | | ???????# #??????????????????????# """" | | ???????# #??????????????????????# """" | | ???????# #??????????????????????# """" | | ???????# #??????????????????????# """" | | ???????#############??????????????????????# | | ??????????????????????????????????????????######## | | ?????????????????????????????????????????????????? | | ?????????????????????????????????????????????????? | | ?????????????????????????????????????????????????? | | ?????????????????????????????????????????????????? | | ?????????????????????????????????????????????????? | | ?????????????????????????????????????????????????? | | ?????????????????????????????????????????????????? | | ?????????????????????????????????????????????????? | | ?????????????????????????????????????????????????? | | ?????????????????????????????????????????????????? | | ?????????????????????????????????????????????????? | | ?????????????????????????????????????????????????? | | ?????????????????????????????????????????????????? | | ?????????????????????????????????????????????????? | +----------------------------------------------------+ Best States ------------- Heat Dissipation 31 Energy Generation 14 Energy Capacity 265 Matter Stores 300 Matter Capacity 300 Sight Range 20 Robot Scan Range 14 Terrain Scan Density 10 Evasion (%) 55 Item Schematics ----------------- Signal Interpreter | -9/Materials | Scanalyzed Robot Schematics ------------------ None Fabricated ------------ Nothing Alien Tech Used ----------------- None Achievements -------------- First Step to Greatness Storm Trooper Challenges ------------ None Game ------ Seed FocalNetworkBox Manual? 0 Play Time 00:29:11 Cumulative 0.9 hours Start 2024.03.31 @ 20:49:16 End 2024.03.31 @ 21:18:13 Sessions 1 Manual Loads 0 Difficulty Rogue Special Mode None Game No. 2 Rogue 1 Adventurer 0 Explorer 1 Win Type - Total 0 Types 0/0/0/0/0/0/0/0/0 Lore% 1 Gallery% 2 Achievement% 2 Wizard Run 0 Options --------- Layout 1 ASCII 0 Keyboard 0 Movement Mouse Keybinds 0 Fullscreen 1 Font 32/SmallcapsGlow Map View 25x17 Zoom Use 84% Tactical HUD 1 Map Filters NONE Filters NONE Steam 1 RUN: 1340a8ce-301a-420e-ae68-a561f1264279